Workbook

Sheet Pig Spaces
B1: Iowa Pork Industry Center | O1: =TODAY() -> 2018-10-01
K2: Prepared for:
B3: Pig Space Considerations | R3: Week | S3: pigs to nursery | T3: pigs to finisher | U3: pigs to market | V3: Week | W3: Nursery Spaces | X3: Finisher Spaces | AA3: nursery weeks | AH3: finisher weeks
K4: Prepared by: | Q4: jan | R4: 1 | S4: =E10*G13 -> 900 | T4: =(1-$G$14)*S50 -> 1012 | U4: =(1-$G$14)*T28 -> 981.64 | V4: =1 -> 1 | W4: =SUM(S51:S55)+S4+SUM(AA4:AF4) -> 6000 | X4: =T4+SUM(T44:T55)+(SUM(AH4:AU4)) -> 21888 | AA4: =IF($L$14-$L$13>6,S50,0) -> 0 | AB4: =IF($L$14-$L$13>7,S49,0) -> 0 | AC4: =IF($L$14-$L$13>8,S48,0) -> 0 | AD4: =IF($L$14-$L$13>9,S47,0) -> 0 | AE4: =IF($L$14-$L$13>10,S46,0) -> 0 | AF4: =IF($L$14-$L$13>11,S45,0) -> 0 | AH4: =IF($L$15-$L$14>12,$T43,0) -> 1152 | AI4: =IF($L$15-$L$14>13,$T42,0) -> 1152 | AJ4: =IF($L$15-$L$14>14,$T41,0) -> 1152 | AK4: =IF($L$15-$L$14>15,$T40,0) -> 1152 | AL4: =IF($L$15-$L$14>16,$T39,0) -> 1164 | AM4: =IF($L$15-$L$14>17,$T38,0) -> 1164 | AN4: =IF($L$15-$L$14>18,$T37,0) -> 1164 | AO4: =IF($L$15-$L$14>19,$T36,0) -> 0 | AP4: =IF($L$15-$L$14>20,$T35,0) -> 0 | AQ4: =IF($L$15-$L$14>21,$T34,0) -> 0 | AR4: =IF($L$15-$L$14>22,$T33,0) -> 0 | AS4: =IF($L$15-$L$14>23,$T32,0) -> 0 | AT4: =IF($L$15-$L$14>24,$T31,0) -> 0 | AU4: =IF($L$15-$L$14>25,$T30,0) -> 0 | AV4: January
Q5: jan | R5: =1+R4 -> 2 | S5: =S4 -> 900 | T5: =(1-$G$14)*S51 -> 1012 | U5: =(1-$G$14)*T29 -> 981.64 | V5: =1+V4 -> 2 | W5: =SUM(S52:S56)+SUM(S$4:S5)+SUM(AA5:AF5) -> 5800 | X5: =SUM($T$4:T5)+SUM(T45:T56)+(SUM(AH5:AU5)) -> 21736 | AA5: 0 | AB5: 0 | AC5: 0 | AD5: 0 | AE5: 0 | AF5: 0 | AH5: 1152 | AI5: 1152 | AJ5: 1152 | AK5: 1152 | AL5: 1152 | AM5: 1164 | AN5: 1164 | AO5: 0 | AP5: 0 | AQ5: 0 | AR5: 0 | AS5: 0 | AT5: 0 | AU5: 0 | AV5: January
Q6: jan | R6: =1+R5 -> 3 | S6: =S5 -> 900 | T6: 1012 | U6: 1070.88 | V6: =1+V5 -> 3 | W6: =SUM(S53:S57)+SUM(S$4:S6)+SUM(AA6:AF6) -> 5600 | X6: =SUM($T$4:T6)+SUM(T46:T57)+(SUM(AH6:AU6)) -> 21584 | AA6: 0 | AB6: 0 | AC6: 0 | AD6: 0 | AE6: 0 | AF6: 0 | AH6: 1152 | AI6: 1152 | AJ6: 1152 | AK6: 1152 | AL6: 1152 | AM6: 1152 | AN6: 1164 | AO6: 0 | AP6: 0 | AQ6: 0 | AR6: 0 | AS6: 0 | AT6: 0 | AU6: 0 | AV6: January
Q7: jan | R7: 4 | S7: 900 | T7: 1012 | U7: 1070.88 | V7: 4 | W7: =SUM(S54:S58)+SUM(S$4:S7)+SUM(AA7:AF7) -> 5400 | X7: =SUM($T$4:T7)+SUM(T47:T58)+(SUM(AH7:AU7)) -> 21432 | AA7: 0 | AB7: 0 | AC7: 0 | AD7: 0 | AE7: 0 | AF7: 0 | AH7: 1056 | AI7: 1152 | AJ7: 1152 | AK7: 1152 | AL7: 1152 | AM7: 1152 | AN7: 1152 | AO7: 0 | AP7: 0 | AQ7: 0 | AR7: 0 | AS7: 0 | AT7: 0 | AU7: 0 | AV7: January - Feb.
B8: Input | Q8: jan | R8: 5 | S8: 900 | T8: 828 | U8: 1070.88 | V8: 5 | W8: =SUM(S55:S59)+SUM(S4:S8)+SUM(AA8:AF8) -> 5400 | X8: =SUM($T$4:T8)+SUM(T48:T59)+(SUM(AH8:AU8)) -> 21108 | AA8: 0 | AB8: 0 | AC8: 0 | AD8: 0 | AE8: 0 | AF8: 0 | AH8: 1056 | AI8: 1056 | AJ8: 1152 | AK8: 1152 | AL8: 1152 | AM8: 1152 | AN8: 1152 | AO8: 0 | AP8: 0 | AQ8: 0 | AR8: 0 | AS8: 0 | AT8: 0 | AU8: 0 | AV8: February
Q9: feb | R9: 6 | S9: 900 | T9: 828 | U9: 1070.88 | V9: 6 | W9: =SUM(S5:S9)+SUM(AA9:AF9) -> 4500 | X9: =SUM($T$4:T9)+SUM(T49:T60)+(SUM(AH9:AU9)) -> 20784 | AA9: 0 | AB9: 0 | AC9: 0 | AD9: 0 | AE9: 0 | AF9: 0 | AH9: 1056 | AI9: 1056 | AJ9: 1056 | AK9: 1152 | AL9: 1152 | AM9: 1152 | AN9: 1152 | AO9: 0 | AP9: 0 | AQ9: 0 | AR9: 0 | AS9: 0 | AT9: 0 | AU9: 0 | AV9: February
B10: Sows Farrowing per Week | E10: 100 | G10: =(E10*52)/E11 -> 2260.869565 | H10: sows | Q10: feb | R10: 7 | S10: 900 | T10: =(1-$G$14)*S4 -> 828 | U10: 1070.88 | V10: 7 | W10: =SUM(S6:S10)+SUM(AA10:AF10) -> 4500 | X10: =SUM($T$4:T10)+SUM(T50:T61)+(SUM(AH10:AU10)) -> 20460 | AA10: =IF($L$14-$L$13>6,S4,0) -> 0 | AB10: 0 | AC10: 0 | AD10: 0 | AE10: 0 | AF10: 0 | AH10: 1056 | AI10: 1056 | AJ10: 1056 | AK10: 1056 | AL10: 1152 | AM10: 1152 | AN10: 1152 | AO10: 0 | AP10: 0 | AQ10: 0 | AR10: 0 | AS10: 0 | AT10: 0 | AU10: 0 | AV10: February
B11: Litters per Sow per Year | E11: 2.3 | Q11: feb | R11: 8 | S11: 900 | T11: =(1-$G$14)*S5 -> 828 | U11: 1070.88 | V11: 8 | W11: 4500 | X11: =SUM($T$4:T11)+SUM(T51:T62)+(SUM(AH11:AU11)) -> 20136 | AA11: 0 | AB11: =IF($L$14-$L$13>7,S4,0) -> 0 | AC11: 0 | AD11: 0 | AE11: 0 | AF11: 0 | AH11: 1056 | AI11: 1056 | AJ11: 1056 | AK11: 1056 | AL11: 1056 | AM11: 1152 | AN11: 1152 | AO11: 0 | AP11: 0 | AQ11: 0 | AR11: 0 | AS11: 0 | AT11: 0 | AU11: 0 | AV11: February - March
B12: Seasonal Data | D12: Spring | E12: Summer | F12: Fall | G12: Winter | H12: Overall | J12: Current Timeline | Q12: mar | R12: 9 | S12: 900 | T12: 828 | U12: 1070.88 | V12: 9 | W12: 4500 | X12: =SUM($T$4:T12)+SUM(T52:T63)+(SUM(AH12:AU12)) -> 19812 | AA12: 0 | AB12: 0 | AC12: =IF($L$14-$L$13>8,S4,0) -> 0 | AD12: 0 | AE12: 0 | AF12: 0 | AH12: 1056 | AI12: 1056 | AJ12: 1056 | AK12: 1056 | AL12: 1056 | AM12: 1056 | AN12: 1152 | AO12: 0 | AP12: 0 | AQ12: 0 | AR12: 0 | AS12: 0 | AT12: 0 | AU12: 0 | AV12: March
B13: Pigs Weaned per Sow | D13: 11 | E13: 12 | F13: 11 | G13: 9 | H13: =AVERAGE(D13:G13) -> 10.75 | J13: Age Entering Nursery | L13: 4 | M13: weeks 3-5 | Q13: mar | R13: 10 | S13: 900 | T13: 828 | U13: 1070.88 | V13: 10 | W13: 4500 | X13: =SUM($T$4:T13)+SUM(T53:T64)+(SUM(AH13:AU13)) -> 19488 | AA13: 0 | AB13: 0 | AC13: 0 | AD13: =IF($L$14-$L$13>9,S4,0) -> 0 | AE13: 0 | AF13: 0 | AH13: 1056 | AI13: 1056 | AJ13: 1056 | AK13: 1056 | AL13: 1056 | AM13: 1056 | AN13: 1056 | AO13: 0 | AP13: 0 | AQ13: 0 | AR13: 0 | AS13: 0 | AT13: 0 | AU13: 0 | AV13: March
B14: Nursery Mortality | D14: 0.05 | E14: 0.03 | F14: 0.04 | G14: 0.08 | H14: =AVERAGE(D14:G14) -> 0.05 | J14: Age Entering Finisher | L14: 10 | M14: weeks (10-15) | N14: =(L14-L13)*7 -> 42 | Q14: mar | R14: 11 | S14: =S13 -> 900 | T14: 828 | U14: 1070.88 | V14: 11 | W14: 4500 | X14: =SUM($T$4:T14)+SUM(T54:T65)+(SUM(AH14:AU14)) -> 19260 | AA14: 0 | AB14: 0 | AC14: 0 | AD14: 0 | AE14: =IF($L$14-$L$13>10,S4,0) -> 0 | AF14: 0 | AH14: 1056 | AI14: 1056 | AJ14: 1056 | AK14: 1056 | AL14: 1056 | AM14: 1056 | AN14: 1056 | AO14: 0 | AP14: 0 | AQ14: 0 | AR14: 0 | AS14: 0 | AT14: 0 | AU14: 0 | AV14: March
B15: Finisher Mortality | D15: 0.03 | E15: 0.06 | F15: 0.05 | G15: 0.07 | H15: 0.0525 | J15: Age at Market | L15: 29 | M15: weeks (27 - 34) | N15: =(L15-L14)*7 -> 133 | Q15: mar | R15: 12 | S15: =E10*D13 -> 1100 | T15: =(1-$D$14)*S9 -> 855 | U15: 1070.88 | V15: 12 | W15: 4700 | X15: =SUM($T$4:T15)+SUM(T55:T66)+(SUM(AH15:AU15)) -> 19059 | AA15: 0 | AB15: 0 | AC15: 0 | AD15: 0 | AE15: 0 | AF15: =IF($L$14-$L$13>11,S4,0) -> 0 | AH15: 1012 | AI15: 1056 | AJ15: 1056 | AK15: 1056 | AL15: 1056 | AM15: 1056 | AN15: 1056 | AO15: 0 | AP15: 0 | AQ15: 0 | AR15: 0 | AS15: 0 | AT15: 0 | AU15: 0 | AV15: March
Q16: mar | R16: 13 | S16: =S15 -> 1100 | T16: =(1-$D$14)*S10 -> 855 | U16: =(1-$D$14)*T40 -> 1094.4 | V16: 13 | W16: 4900 | X16: =SUM(T4:T16)+(SUM(AH16:AU16)) -> 18858 | AA16: 0 | AB16: 0 | AC16: 0 | AD16: 0 | AE16: 0 | AF16: 0 | AH16: 1012 | AI16: 1012 | AJ16: 1056 | AK16: 1056 | AL16: 1056 | AM16: 1056 | AN16: 1056 | AO16: 0 | AP16: 0 | AQ16: 0 | AR16: 0 | AS16: 0 | AT16: 0 | AU16: 0 | AV16: April
B17: Current Performance | D17: Nursery | E17: Finisher | J17: Current Market Weights | Q17: apr | R17: 14 | S17: =S16 -> 1100 | T17: 855 | U17: =(1-$D$14)*T41 -> 1094.4 | V17: 14 | W17: 5100 | X17: =SUM(T5:T17)+(SUM(AH17:AU17)) -> 18657 | AA17: 0 | AB17: 0 | AC17: 0 | AD17: 0 | AE17: 0 | AF17: 0 | AH17: =IF($L$15-$L$14>12,$T4,0) -> 1012 | AI17: 1012 | AJ17: 1012 | AK17: 1056 | AL17: 1056 | AM17: 1056 | AN17: 1056 | AO17: 0 | AP17: 0 | AQ17: 0 | AR17: 0 | AS17: 0 | AT17: 0 | AU17: 0 | AV17: April
B18: Wt. per Pig Entering | D18: 15 | E18: 58 | F18: lbs | J18: Finished Market Wt. | L18: 285 | M18: lbs | Q18: apr | R18: 15 | S18: 1100 | T18: 855 | U18: 1094.4 | V18: 15 | W18: 5300 | X18: 18456 | AA18: 0 | AB18: 0 | AC18: 0 | AD18: 0 | AE18: 0 | AF18: 0 | AH18: 1012 | AI18: =IF($L$15-$L$14>13,$T4,0) -> 1012 | AJ18: 1012 | AK18: 1012 | AL18: 1056 | AM18: 1056 | AN18: 1056 | AO18: 0 | AP18: 0 | AQ18: 0 | AR18: 0 | AS18: 0 | AT18: 0 | AU18: 0 | AV18: April
B19: Avg Daily Gain | D19: =(E18-D18)/(7*(L14-L13)) -> 1.023809524 | E19: =(L18-E18)/((L15-L14)*7) -> 1.706766917 | F19: lbs/day | J19: Target Market Wt. Range | L19: 270 | M19: lbs to | N19: 300 | O19: lbs | Q19: apr | R19: 16 | S19: 1100 | T19: 855 | U19: 1094.4 | V19: 16 | W19: 5500 | X19: 18255 | AA19: 0 | AB19: 0 | AC19: 0 | AD19: 0 | AE19: 0 | AF19: 0 | AH19: 1012 | AI19: 1012 | AJ19: =IF($L$15-$L$14>14,$T4,0) -> 1012 | AK19: 1012 | AL19: 1012 | AM19: 1056 | AN19: 1056 | AO19: 0 | AP19: 0 | AQ19: 0 | AR19: 0 | AS19: 0 | AT19: 0 | AU19: 0 | AV19: April
B20: F:G | D20: 2 | E20: 2.4 | Q20: apr | R20: 17 | S20: 1100 | T20: 855 | U20: 1094.4 | V20: 17 | W20: 5500 | X20: 18054 | AA20: 0 | AB20: 0 | AC20: 0 | AD20: 0 | AE20: 0 | AF20: 0 | AH20: 1012 | AI20: 1012 | AJ20: 1012 | AK20: =IF($L$15-$L$14>15,$T4,0) -> 1012 | AL20: 1012 | AM20: 1012 | AN20: 1056 | AO20: 0 | AP20: 0 | AQ20: 0 | AR20: 0 | AS20: 0 | AT20: 0 | AU20: 0 | AV20: April-May
B21: Livability | D21: =1-H14 -> 0.95 | E21: =1-H15 -> 0.9475 | J21: Current Building Specs. | L21: Nursery | M21: Finisher | Q21: may | R21: 18 | S21: 1100 | T21: 1045 | U21: 1094.4 | V21: 18 | W21: 5500 | X21: 18043 | AA21: 0 | AB21: 0 | AC21: 0 | AD21: 0 | AE21: 0 | AF21: 0 | AH21: 828 | AI21: 1012 | AJ21: 1012 | AK21: 1012 | AL21: =IF($L$15-$L$14>16,$T4,0) -> 1012 | AM21: 1012 | AN21: 1012 | AO21: 0 | AP21: 0 | AQ21: 0 | AR21: 0 | AS21: 0 | AT21: 0 | AU21: 0 | AV21: May
J22: Building Cost | L22: 100000 | M22: 100000 | Q22: may | R22: 19 | S22: 1100 | T22: 1045 | U22: 1003.2 | V22: 19 | W22: 5500 | X22: 18076 | AA22: 0 | AB22: 0 | AC22: 0 | AD22: 0 | AE22: 0 | AF22: 0 | AH22: 828 | AI22: 828 | AJ22: 1012 | AK22: 1012 | AL22: 1012 | AM22: =IF($L$15-$L$14>17,$T4,0) -> 1012 | AN22: 1012 | AO22: 0 | AP22: 0 | AQ22: 0 | AR22: 0 | AS22: 0 | AT22: 0 | AU22: 0 | AV22: May
B23: Pen Charge | D23: 0.15 | E23: 0.2 | F23: $/hd/day | J23: Building Capacity | L23: 4000 | M23: 2000 | N23: head | Q23: may | R23: 20 | S23: 1100 | T23: 1045 | U23: 1003.2 | V23: 20 | W23: 5500 | X23: 18109 | AA23: 0 | AB23: 0 | AC23: 0 | AD23: 0 | AE23: 0 | AF23: 0 | AH23: 828 | AI23: 828 | AJ23: 828 | AK23: 1012 | AL23: 1012 | AM23: 1012 | AN23: =IF($L$15-$L$14>18,$T4,0) -> 1012 | AO23: 0 | AP23: 0 | AQ23: 0 | AR23: 0 | AS23: 0 | AT23: 0 | AU23: 0 | AV23: May
B24: Feed Cost | D24: 200 | E24: 180 | F24: $/ton | J24: Current Floor Space/Pig | L24: 3.5 | M24: 8 | N24: square feet | Q24: may | R24: 21 | S24: =E10*E13 -> 1200 | T24: =(1-$E$14)*S18 -> 1067 | U24: 1003.2 | V24: 21 | W24: 5600 | X24: 18164 | AA24: 0 | AB24: 0 | AC24: 0 | AD24: 0 | AE24: 0 | AF24: 0 | AH24: 828 | AI24: 828 | AJ24: 828 | AK24: 828 | AL24: 1012 | AM24: 1012 | AN24: 1012 | AO24: =IF($L$15-$L$14>19,$T4,0) -> 0 | AP24: 0 | AQ24: 0 | AR24: 0 | AS24: 0 | AT24: 0 | AU24: 0 | AV24: May
B25: Breakeven | D25: 80 | E25: 45 | F25: $/cwt - live | L25: =L24*L23 -> 14000 | M25: =M24*M23 -> 16000 | Q25: June | R25: 22 | S25: =S24 -> 1200 | T25: =(1-$E$14)*S19 -> 1067 | U25: 1003.2 | V25: 22 | W25: 5700 | X25: 18219 | AA25: 0 | AB25: 0 | AC25: 0 | AD25: 0 | AE25: 0 | AF25: 0 | AH25: 828 | AI25: 828 | AJ25: 828 | AK25: 828 | AL25: 828 | AM25: 1012 | AN25: 1012 | AO25: 0 | AP25: =IF($L$15-$L$14>20,$T4,0) -> 0 | AQ25: 0 | AR25: 0 | AS25: 0 | AT25: 0 | AU25: 0 | AV25: =Q26 -> June
B26: Market Value | D26: 100 | E26: 50 | F26: $/cwt - live | J26: Floor Space Adjustments | L26: Default | M26: User Defined | Q26: June | R26: 23 | S26: =S25 -> 1200 | T26: 1067 | U26: 1003.2 | V26: 23 | W26: 5800 | X26: 18274 | AA26: 0 | AB26: 0 | AC26: 0 | AD26: 0 | AE26: 0 | AF26: 0 | AH26: 828 | AI26: 828 | AJ26: 828 | AK26: 828 | AL26: 828 | AM26: 828 | AN26: 1012 | AO26: 0 | AP26: 0 | AQ26: =IF($L$15-$L$14>21,$T4,0) -> 0 | AR26: 0 | AS26: 0 | AT26: 0 | AU26: 0 | AV26: June
B27: Weeks per Turn | D27: 13 | E27: 21 | J27: Avg. Daily Gain | L27: 0.0585 | M27: 0.0585 | N27: per added square foot | Q27: June | R27: 24 | S27: 1200 | T27: 1067 | U27: 1003.2 | V27: 24 | W27: 5900 | X27: 18329 | AA27: 0 | AB27: 0 | AC27: 0 | AD27: 0 | AE27: 0 | AF27: 0 | AH27: 828 | AI27: 828 | AJ27: 828 | AK27: 828 | AL27: 828 | AM27: 828 | AN27: 828 | AO27: 0 | AP27: 0 | AQ27: 0 | AR27: =IF($L$15-$L$14>22,$T4,0) -> 0 | AS27: 0 | AT27: 0 | AU27: 0 | AV27: June
B28: Total Spaces | D28: 4000 | E28: 20000 | J28: Feed to Gain | L28: -0.072 | M28: -0.072 | N28: per added square foot | Q28: June | R28: 25 | S28: 1200 | T28: 1067 | U28: =(1-$E$14)*T52 -> 1024.32 | V28: 25 | W28: 6000 | X28: 18568 | AA28: 0 | AB28: 0 | AC28: 0 | AD28: 0 | AE28: 0 | AF28: 0 | AH28: 855 | AI28: 828 | AJ28: 828 | AK28: 828 | AL28: 828 | AM28: 828 | AN28: 828 | AO28: 0 | AP28: 0 | AQ28: 0 | AR28: 0 | AS28: =IF($L$15-$L$14>23,$T4,0) -> 0 | AT28: 0 | AU28: 0 | AV28: June-July
B29: Spaces / Sow | D29: =D28/G10 -> 1.769230769 | E29: =E28/G10 -> 8.846153846 | J29: Livability | L29: 0.014 | M29: 0.014 | N29: per added square foot | Q29: july | R29: 26 | S29: 1200 | T29: 1067 | U29: =(1-$E$14)*T53 -> 1024.32 | V29: 26 | W29: 6000 | X29: 18807 | AA29: 0 | AB29: 0 | AC29: 0 | AD29: 0 | AE29: 0 | AF29: 0 | AH29: 855 | AI29: 855 | AJ29: 828 | AK29: 828 | AL29: 828 | AM29: 828 | AN29: 828 | AO29: 0 | AP29: 0 | AQ29: 0 | AR29: 0 | AS29: 0 | AT29: =IF($L$15-$L$14>24,$T4,0) -> 0 | AU29: 0 | AV29: July
M30: =IF(M29>H14,0.1*M29,M29) -> 0.014 | N30: =IF(M29>H15,0.1*M29,M29) -> 0.014 | Q30: july | R30: 27 | S30: 1200 | T30: 1164 | U30: 981.64 | V30: 27 | W30: 6000 | X30: 19143 | AA30: 0 | AB30: 0 | AC30: 0 | AD30: 0 | AE30: 0 | AF30: 0 | AH30: 855 | AI30: 855 | AJ30: 855 | AK30: 828 | AL30: 828 | AM30: 828 | AN30: 828 | AO30: 0 | AP30: 0 | AQ30: 0 | AR30: 0 | AS30: 0 | AT30: 0 | AU30: =IF($L$15-$L$14>25,$T4,0) -> 0 | AV30: July
B31: Output | Q31: july | R31: 28 | S31: 1200 | T31: 1164 | U31: 981.64 | V31: 28 | W31: 6000 | X31: 19479 | AA31: 0 | AB31: 0 | AC31: 0 | AD31: 0 | AE31: 0 | AF31: 0 | AH31: 855 | AI31: 855 | AJ31: 855 | AK31: 855 | AL31: 828 | AM31: 828 | AN31: 828 | AO31: 0 | AP31: 0 | AQ31: 0 | AR31: 0 | AS31: 0 | AT31: 0 | AU31: 0 | AV31: July
B32: Yearly Space Projection | Q32: july | R32: 29 | S32: 1200 | T32: 1164 | U32: =(1-$E$14)*T4 -> 981.64 | V32: 29 | W32: 6000 | X32: 19815 | AA32: 0 | AB32: 0 | AC32: 0 | AD32: 0 | AE32: 0 | AF32: 0 | AH32: 855 | AI32: 855 | AJ32: 855 | AK32: 855 | AL32: 855 | AM32: 828 | AN32: 828 | AO32: 0 | AP32: 0 | AQ32: 0 | AR32: 0 | AS32: 0 | AT32: 0 | AU32: 0 | AV32: July
D33: Nursery Spaces - Min. | E33: =MIN(W4:W55) -> 4500 | F33: Max. | G33: =MAX(W4:W55) -> 6000 | Q33: aug | R33: 30 | S33: 1200 | T33: 1164 | U33: =(1-$E$14)*T5 -> 981.64 | V33: 30 | W33: 6000 | X33: 20151 | AA33: 0 | AB33: 0 | AC33: 0 | AD33: 0 | AE33: 0 | AF33: 0 | AH33: 855 | AI33: 855 | AJ33: 855 | AK33: 855 | AL33: 855 | AM33: 855 | AN33: 828 | AO33: 0 | AP33: 0 | AQ33: 0 | AR33: 0 | AS33: 0 | AT33: 0 | AU33: 0 | AV33: August
D34: Finisher Spaces - Min. | E34: =MIN(X4:X55) -> 18043 | F34: Max. | G34: =MAX(X4:X55) -> 22820 | Q34: aug | R34: 31 | S34: 1200 | T34: 1164 | U34: 981.64 | V34: 31 | W34: 6000 | X34: 20487 | AA34: 0 | AB34: 0 | AC34: 0 | AD34: 0 | AE34: 0 | AF34: 0 | AH34: 1045 | AI34: 855 | AJ34: 855 | AK34: 855 | AL34: 855 | AM34: 855 | AN34: 855 | AO34: 0 | AP34: 0 | AQ34: 0 | AR34: 0 | AS34: 0 | AT34: 0 | AU34: 0 | AV34: August
Q35: aug | R35: 32 | S35: 1200 | T35: 1164 | U35: 981.64 | V35: 32 | W35: 6000 | X35: 20796 | AA35: 0 | AB35: 0 | AC35: 0 | AD35: 0 | AE35: 0 | AF35: 0 | AH35: 1045 | AI35: 1045 | AJ35: 855 | AK35: 855 | AL35: 855 | AM35: 855 | AN35: 855 | AO35: 0 | AP35: 0 | AQ35: 0 | AR35: 0 | AS35: 0 | AT35: 0 | AU35: 0 | AV35: August
Q36: aug | R36: 33 | S36: 1200 | T36: 1164 | U36: 803.16 | V36: 33 | W36: 6000 | X36: 21105 | AA36: 0 | AB36: 0 | AC36: 0 | AD36: 0 | AE36: 0 | AF36: 0 | AH36: 1045 | AI36: 1045 | AJ36: 1045 | AK36: 855 | AL36: 855 | AM36: 855 | AN36: 855 | AO36: 0 | AP36: 0 | AQ36: 0 | AR36: 0 | AS36: 0 | AT36: 0 | AU36: 0 | AV36: August
Q37: aug | R37: 34 | S37: 1200 | T37: 1164 | U37: 803.16 | V37: 34 | W37: 6000 | X37: 21414 | AA37: 0 | AB37: 0 | AC37: 0 | AD37: 0 | AE37: 0 | AF37: 0 | AH37: 1067 | AI37: 1045 | AJ37: 1045 | AK37: 1045 | AL37: 855 | AM37: 855 | AN37: 855 | AO37: 0 | AP37: 0 | AQ37: 0 | AR37: 0 | AS37: 0 | AT37: 0 | AU37: 0 | AV37: August-Sept
Q38: sept | R38: 35 | S38: 1200 | T38: 1164 | U38: 803.16 | V38: 35 | W38: 6000 | X38: 21723 | AA38: 0 | AB38: 0 | AC38: 0 | AD38: 0 | AE38: 0 | AF38: 0 | AH38: 1067 | AI38: 1067 | AJ38: 1045 | AK38: 1045 | AL38: 1045 | AM38: 855 | AN38: 855 | AO38: 0 | AP38: 0 | AQ38: 0 | AR38: 0 | AS38: 0 | AT38: 0 | AU38: 0 | AV38: September
Q39: sept | R39: 36 | S39: 1200 | T39: 1164 | U39: 803.16 | V39: 36 | W39: 6000 | X39: 22032 | AA39: 0 | AB39: 0 | AC39: 0 | AD39: 0 | AE39: 0 | AF39: 0 | AH39: 1067 | AI39: 1067 | AJ39: 1067 | AK39: 1045 | AL39: 1045 | AM39: 1045 | AN39: 855 | AO39: 0 | AP39: 0 | AQ39: 0 | AR39: 0 | AS39: 0 | AT39: 0 | AU39: 0 | AV39: September
Q40: sept | R40: 37 | S40: =E10*F13 -> 1100 | T40: =(1-$F$14)*S34 -> 1152 | U40: 803.16 | V40: 37 | W40: 5900 | X40: 22329 | AA40: 0 | AB40: 0 | AC40: 0 | AD40: 0 | AE40: 0 | AF40: 0 | AH40: 1067 | AI40: 1067 | AJ40: 1067 | AK40: 1067 | AL40: 1045 | AM40: 1045 | AN40: 1045 | AO40: 0 | AP40: 0 | AQ40: 0 | AR40: 0 | AS40: 0 | AT40: 0 | AU40: 0 | AV40: September
D41: =D25*0.01*E18 -> 46.4 | E41: =E25*L18*0.01 -> 128.25 | Q41: sept | R41: 38 | S41: =S40 -> 1100 | T41: =(1-$F$14)*S35 -> 1152 | U41: =(1-$F$14)*T13 -> 794.88 | V41: 38 | W41: 5800 | X41: 22436 | AA41: 0 | AB41: 0 | AC41: 0 | AD41: 0 | AE41: 0 | AF41: 0 | AH41: 1067 | AI41: 1067 | AJ41: 1067 | AK41: 1067 | AL41: 1067 | AM41: 1045 | AN41: 1045 | AO41: 0 | AP41: 0 | AQ41: 0 | AR41: 0 | AS41: 0 | AT41: 0 | AU41: 0 | AV41: September
Q42: oct | R42: 39 | S42: =S41 -> 1100 | T42: 1152 | U42: =(1-$F$14)*T14 -> 794.88 | V42: 39 | W42: 5700 | X42: 22543 | AA42: 0 | AB42: 0 | AC42: 0 | AD42: 0 | AE42: 0 | AF42: 0 | AH42: 1067 | AI42: 1067 | AJ42: 1067 | AK42: 1067 | AL42: 1067 | AM42: 1067 | AN42: 1045 | AO42: 0 | AP42: 0 | AQ42: 0 | AR42: 0 | AS42: 0 | AT42: 0 | AU42: 0 | AV42: October
Q43: oct | R43: 40 | S43: 1100 | T43: 1152 | U43: 820.8 | V43: 40 | W43: 5600 | X43: 22650 | AA43: 0 | AB43: 0 | AC43: 0 | AD43: 0 | AE43: 0 | AF43: 0 | AH43: 1164 | AI43: 1067 | AJ43: 1067 | AK43: 1067 | AL43: 1067 | AM43: 1067 | AN43: 1067 | AO43: 0 | AP43: 0 | AQ43: 0 | AR43: 0 | AS43: 0 | AT43: 0 | AU43: 0 | AV43: October
Q44: oct | R44: 41 | S44: 1100 | T44: 1152 | U44: 820.8 | V44: 41 | W44: 5500 | X44: 22735 | AA44: 0 | AB44: 0 | AC44: 0 | AD44: 0 | AE44: 0 | AF44: 0 | AH44: 1164 | AI44: 1164 | AJ44: 1067 | AK44: 1067 | AL44: 1067 | AM44: 1067 | AN44: 1067 | AO44: 0 | AP44: 0 | AQ44: 0 | AR44: 0 | AS44: 0 | AT44: 0 | AU44: 0 | AV44: October
Q45: oct | R45: 42 | S45: 1100 | T45: 1152 | U45: 820.8 | V45: 42 | W45: 5500 | X45: 22820 | AA45: 0 | AB45: 0 | AC45: 0 | AD45: 0 | AE45: 0 | AF45: 0 | AH45: 1164 | AI45: 1164 | AJ45: 1164 | AK45: 1067 | AL45: 1067 | AM45: 1067 | AN45: 1067 | AO45: 0 | AP45: 0 | AQ45: 0 | AR45: 0 | AS45: 0 | AT45: 0 | AU45: 0 | AV45: October
Q46: nov | R46: 43 | S46: 1100 | T46: 1056 | U46: 820.8 | V46: 43 | W46: 5500 | X46: 22809 | AA46: 0 | AB46: 0 | AC46: 0 | AD46: 0 | AE46: 0 | AF46: 0 | AH46: 1164 | AI46: 1164 | AJ46: 1164 | AK46: 1164 | AL46: 1067 | AM46: 1067 | AN46: 1067 | AO46: 0 | AP46: 0 | AQ46: 0 | AR46: 0 | AS46: 0 | AT46: 0 | AU46: 0 | AV46: October-Nov
Q47: nov | R47: 44 | S47: 1100 | T47: 1056 | U47: 820.8 | V47: 44 | W47: 5500 | X47: 22798 | AA47: 0 | AB47: 0 | AC47: 0 | AD47: 0 | AE47: 0 | AF47: 0 | AH47: 1164 | AI47: 1164 | AJ47: 1164 | AK47: 1164 | AL47: 1164 | AM47: 1067 | AN47: 1067 | AO47: 0 | AP47: 0 | AQ47: 0 | AR47: 0 | AS47: 0 | AT47: 0 | AU47: 0 | AV47: November
Q48: nov | R48: 45 | S48: 1100 | T48: 1056 | U48: 820.8 | V48: 45 | W48: 5500 | X48: 22787 | AA48: 0 | AB48: 0 | AC48: 0 | AD48: 0 | AE48: 0 | AF48: 0 | AH48: 1164 | AI48: 1164 | AJ48: 1164 | AK48: 1164 | AL48: 1164 | AM48: 1164 | AN48: 1067 | AO48: 0 | AP48: 0 | AQ48: 0 | AR48: 0 | AS48: 0 | AT48: 0 | AU48: 0 | AV48: November
B49: Week of Year | E49: 11 | G49: =VLOOKUP(E49,R4:AV55,31) -> March | I49: Pig Movement | K49: Pigs to Nursery | M49: =VLOOKUP(E49,R4:U55,2) -> 900 | Q49: nov | R49: 46 | S49: 1100 | T49: 1056 | U49: 1003.2 | V49: 46 | W49: 5500 | X49: 22776 | AA49: 0 | AB49: 0 | AC49: 0 | AD49: 0 | AE49: 0 | AF49: 0 | AH49: 1164 | AI49: 1164 | AJ49: 1164 | AK49: 1164 | AL49: 1164 | AM49: 1164 | AN49: 1164 | AO49: 0 | AP49: 0 | AQ49: 0 | AR49: 0 | AS49: 0 | AT49: 0 | AU49: 0 | AV49: November
B50: Nursery Spaces Needed | E50: =VLOOKUP(E49,V4:X55,2) -> 4500 | G50: =IF(P50>0,P50&" spaces short",P50*-1&" spaces long") -> 500 spaces short | I50: Week = | J50: =E49 -> 11 | K50: Pigs to Finisher | M50: =VLOOKUP(E49,R4:U55,3) -> 828 | P50: =E50-D28 -> 500 | Q50: nov | R50: 47 | S50: 1100 | T50: 1056 | U50: 1003.2 | V50: 47 | W50: 5500 | X50: 22668 | AA50: 0 | AB50: 0 | AC50: 0 | AD50: 0 | AE50: 0 | AF50: 0 | AH50: 1164 | AI50: 1164 | AJ50: 1164 | AK50: 1164 | AL50: 1164 | AM50: 1164 | AN50: 1164 | AO50: 0 | AP50: 0 | AQ50: 0 | AR50: 0 | AS50: 0 | AT50: 0 | AU50: 0 | AV50: November
B51: Finisher Spaces Needed | E51: =VLOOKUP(E49,V4:X55,3) -> 19260 | G51: =IF(P51>0,P51&" spaces short",P51*-1&" spaces long") -> 740 spaces long | K51: Pigs to Market | M51: =VLOOKUP(E49,R4:U55,4) -> 1070.88 | P51: =E51-E28 -> -740 | Q51: dec | R51: 48 | S51: 1100 | T51: 1056 | U51: 1003.2 | V51: 48 | W51: 5500 | X51: 22560 | AA51: 0 | AB51: 0 | AC51: 0 | AD51: 0 | AE51: 0 | AF51: 0 | AH51: 1164 | AI51: 1164 | AJ51: 1164 | AK51: 1164 | AL51: 1164 | AM51: 1164 | AN51: 1164 | AO51: 0 | AP51: 0 | AQ51: 0 | AR51: 0 | AS51: 0 | AT51: 0 | AU51: 0 | AV51: December
Q52: dec | R52: 49 | S52: 1100 | T52: 1056 | U52: 1024.32 | V52: 49 | W52: 5500 | X52: 22452 | AA52: 0 | AB52: 0 | AC52: 0 | AD52: 0 | AE52: 0 | AF52: 0 | AH52: 1164 | AI52: 1164 | AJ52: 1164 | AK52: 1164 | AL52: 1164 | AM52: 1164 | AN52: 1164 | AO52: 0 | AP52: 0 | AQ52: 0 | AR52: 0 | AS52: 0 | AT52: 0 | AU52: 0 | AV52: December
B53: WorkSheet - Change in Population | I53: WorkSheet - Direct Change in Space Allocation | Q53: dec | R53: 50 | S53: 1100 | T53: 1056 | U53: 1024.32 | V53: 50 | W53: 5500 | X53: 22344 | AA53: 0 | AB53: 0 | AC53: 0 | AD53: 0 | AE53: 0 | AF53: 0 | AH53: 1152 | AI53: 1164 | AJ53: 1164 | AK53: 1164 | AL53: 1164 | AM53: 1164 | AN53: 1164 | AO53: 0 | AP53: 0 | AQ53: 0 | AR53: 0 | AS53: 0 | AT53: 0 | AU53: 0 | AV53: December
D54: Nursery | E54: Finisher | K54: Nursery | L54: Finisher | Q54: dec | R54: 51 | S54: =E10*G13 -> 900 | T54: =(1-$G$14)*S48 -> 1012 | U54: =(1-$G$14)*T26 -> 981.64 | V54: 51 | W54: 5300 | X54: 22192 | AA54: 0 | AB54: 0 | AC54: 0 | AD54: 0 | AE54: 0 | AF54: 0 | AH54: 1152 | AI54: 1152 | AJ54: 1164 | AK54: 1164 | AL54: 1164 | AM54: 1164 | AN54: 1164 | AO54: 0 | AP54: 0 | AQ54: 0 | AR54: 0 | AS54: 0 | AT54: 0 | AU54: 0 | AV54: December
B55: Proposed Head Count | D55: 4400 | E55: 1800 | F55: pigs | I55: Proposed Floor Space | K55: 4 | L55: 9 | M55: square feet | Q55: dec | R55: 52 | S55: =S54 -> 900 | T55: 1012 | U55: =(1-$G$14)*T27 -> 981.64 | V55: 52 | W55: 5100 | X55: 22040 | AA55: 0 | AB55: 0 | AC55: 0 | AD55: 0 | AE55: 0 | AF55: 0 | AH55: 1152 | AI55: 1152 | AJ55: 1152 | AK55: 1164 | AL55: 1164 | AM55: 1164 | AN55: 1164 | AO55: 0 | AP55: 0 | AQ55: 0 | AR55: 0 | AS55: 0 | AT55: 0 | AU55: 0 | AV55: December
B56: Percent Overstocking | D56: =D55/L23-1 -> 0.1 | E56: =E55/M23-1 -> -0.1 | I56: Effective Change | K56: =IF(K55>4,4-L24,K55-L24) -> 0.5 | L56: =IF(L55>9,9-M24,L55-M24) -> 1 | M56: square feet | AV56: 0
B57: Floor Space/Pig | D57: =IF(D55="","",L25/D55) -> 3.181818182 | E57: =IF(E55="","",M25/E55) -> 8.888888889 | F57: square feet
B58: Effective Change | D58: =IF(D57>4,4-L24,D57-L24) -> -0.3181818182 | E58: =IF(E57>9,9-M24,E57-M24) -> 0.8888888889 | F58: square feet | L58: =IF(OR(K55="",K55=0),(L56*M27+E19)*N15+E18,(L56*M27+E19)*N15+K62) -> 294.009
E59: =IF(OR(D55="",D55=0),(E58*M27+E19)*N15+E18,(E58*M27+E19)*N15+D62) -> 291.1342273 | I59: New Head Count | K59: =L25/K55 -> 3500 | L59: =M25/L55 -> 1777.777778 | M59: pigs
B60: New Avg. Daily Gain | D60: =(D19+M27*D58) -> 1.005195887 | E60: =E58*M27+E19 -> 1.758766917 | F60: lbs / day | I60: New Avg. Daily Gain | K60: =(D19+M27*K56) -> 1.053059524 | L60: =(L56*M27+E19) -> 1.765266917 | M60: lbs / day
B61: New Feed to Gain | D61: =D58*M28+D20 -> 2.022909091 | E61: =E58*M28+E20 -> 2.336 | I61: New Feed to Gain | K61: =K56*M28+D20 -> 1.964 | L61: =L56*M28+E20 -> 2.328
B62: New Market Wt. | D62: =(D19+M27*D58)*N14+D18 -> 57.21822727 | E62: =IF(E59>N19,N19,E59) -> 291.1342273 | F62: lbs | I62: New Market Wt. | K62: =(D19+M27*K56)*N14+D18 -> 59.2285 | L62: =IF(L58>N19,N19,L58) -> 294.009 | M62: lbs
B63: Change in Days Fed | D63: 0 | E63: =IF(E62<L19,(L19-E62)/E60,IF(E62<E59,(E62-E59)/E60,0)) -> 0 | F63: days | I63: Change in Days Fed | K63: 0 | L63: =IF(L62<L19,(L19-L62)/L60,IF(L62<L58,(L62-L58)/L60,0)) -> 0 | M63: days
B65: Floor Space Impact for 100 pigs | I65: Floor Space Impact for 100 pigs
B66: Weight Value Change | D66: =((D62-E18)*D26*0.01)*100 -> -78.17727273 | E66: =((E62-L18)*E26*0.01)*100 -> 306.7113636 | I66: Weight Value Change | K66: =((K62-E18)*D26*0.01)*100 -> 122.85 | L66: =((L62-L18)*E26*0.01)*100 -> 450.45
B67: Pen Charge Change | D67: =D63*D23*100 -> 0 | E67: =E63*E23*100 -> 0 | I67: Pen Charge Change | K67: =K63*D23*100 -> 0 | L67: =L63*E23*100 -> 0
B68: Feed $ Change | D68: =(D61-D20)*(D24/2000)*(D62-D18)*100 -> 9.671812066 | E68: =IF(OR(D55="",D55=0),(E61-E20)*(E24/2000)*(E62-E18)*100,(E61-E20)*(E24/2000)*(E62-D62)*100) -> -134.735616 | I68: Feed $ Change | K68: =(K61-D20)*(D24/2000)*(K62-D18)*100 -> -15.92226 | L68: =IF(OR(K55="",K55=0),(L61-E20)*(E24/2000)*(L62-E18)*100,(L61-E20)*(E24/2000)*(L62-K62)*100) -> -152.137764
B69: Livability Change | D69: =(M30*D58)*100*D41 -> -20.66909091 | E69: =(N30*E58)*100*E41 -> 159.6 | I69: Livability Change | K69: =(M30*K56)*100*D41 -> 32.48 | L69: =(N30*L56)*100*E41 -> 179.55
B70: Income Change | D70: =D66+D67+D68+D69 -> -89.17455157 | E70: =E66+E67+E68+E69 -> 331.5757476 | F70: $/100 pigs | I70: Income Change | K70: =K66+K67+K68+K69 -> 139.40774 | L70: =L66+L67+L68+L69 -> 477.862236 | M70: $/100 pigs
B71: New Spaces per Sow | D71: =(D55/L23*D28)/G10 -> 1.946153846 | E71: =(E55/M23*E28)/G10 -> 7.961538462 | I71: New Spaces per Sow | K71: =(K59/L23*D28)/G10 -> 1.548076923 | L71: =(L59/M23*E28)/G10 -> 7.863247863
B72: Income Change per Turn of Building | I72: Income Change per Turn of Building
B73: Current Gross Income | D73: =E18*L23*(1-H14)*D26*0.01 -> 220400 | E73: =M23*(1-H15)*L18*E26*0.01 -> 270037.5 | I73: Current Gross Income | K73: =E18*L23*(1-H14)*D26*0.01 -> 220400 | L73: =M23*(1-H15)*L18*E26*0.01 -> 270037.5
B74: Current Cost | D74: =E18*L23*(1-H14)*D25*0.01 -> 176320 | E74: =M23*(1-H15)*L18*E25*0.01 -> 243033.75 | I74: Current Cost | K74: =E18*L23*(1-H14)*D25*0.01 -> 176320 | L74: =M23*(1-H15)*L18*E25*0.01 -> 243033.75
B75: Current Net / Turn | D75: =D73-D74 -> 44080 | E75: =E73-E74 -> 27003.75 | I75: Current Net / Turn | K75: =K73-K74 -> 44080 | L75: =L73-L74 -> 27003.75
B76: Current Pigs Sold | D76: =L23*(1-H14) -> 3800 | E76: =M23*(1-H15) -> 1895 | I76: Current Pigs Sold | K76: =L23*(1-H14) -> 3800 | L76: =M23*(1-H15) -> 1895
D77: =D75/D76 -> 11.6 | E77: =E75/E76 -> 14.25 | K77: =K75/K76 -> 11.6 | L77: =L75/L76 -> 14.25
B78: Proposed Net / Turn | D78: =(D77+D70*0.01)*D79 -> 44550.62196 | E78: =(E77+E70*0.01)*E79 -> 30351.87234 | I78: Proposed Net / Turn | K78: =(K77+K70*0.01)*K79 -> 43523.66225 | L78: =(L77+L70*0.01)*L79 -> 32526.25849
B79: Proposed Pigs Sold | D79: =D55*(1-H14+M30*D58) -> 4160.4 | E79: =E55*(1-H15+N30*E58) -> 1727.9 | I79: Proposed Pigs Sold | K79: =K59*(1-H14+M30*K56) -> 3349.5 | L79: =L59*(1-H15+N30*L56) -> 1709.333333
B81: Change In Pig Numbers (new - old) per Turn | I81: Change In Pig Numbers (new - old) per Turn
B82: Entering Building | D82: =D55-L23 -> 400 | E82: =E55-M23 -> -200 | I82: Entering Building | K82: =K59-L23 -> -500 | L82: =L59-M23 -> -222.2222222
B83: Marketed from Building | D83: =D79-D76 -> 360.4 | E83: =E79-E76 -> -167.1 | I83: Marketed from Building | K83: =K79-K76 -> -450.5 | L83: =L79-L76 -> -185.6666667
B85: Surplus Pigs | D85: =IF(D82<0,D82,0)*-1 -> 0 | E85: =IF(E82<0,E82,0)*-1 -> 200 | F85: =D78/D79 -> 10.70825448 | G85: =E78/E79 -> 17.56575748 | I85: Surplus Pigs | K85: =IF(K82<0,K82,0)*-1 -> 500 | L85: =IF(L82<0,L82,0)*-1 -> 222.2222222 | M85: =K78/K79 -> 12.9940774 | N85: =L78/L79 -> 19.02862236
B86: New Building Payoff Time | D86: =IF(D85=0,0,L22/((52/D27)*D83*-1*F85)) -> 0 | E86: =IF(E85=0,0,M22/((52/E27)*E83*-1*G85)) -> 13.75854849 | F86: years | I86: New Building Payoff Time | K86: =IF(K85=0,0,L22/((52/D27)*K83*-1*M85)) -> 4.270706874 | L86: =IF(L85=0,0,M22/((52/E27)*E83*-1*G85)) -> 13.75854849 | M86: years
W93: march
W123: april
W154: may
W184: june
W215: july
W246: august
W276: september
W307: oct
W337: nov
W368: dec

Sheet open1

Sheet open2
